bitfinex-derivatives/quotes_SOLF0:USTF0_20260207
["timestamp","ask_amount","ask_price","bid_price","bid_amount"]
[1770433043824,3.72163252,87.259,87.205,10.3274]
[1770433044028,3.72163252,87.259,87.2,4.02691374]
[1770433045332,3.72163252,87.255,87.166,4.02691374]
[1770433046737,3.72163252,87.253,87.195,4.02691374]
[1770433047331,3.72163252,87.253,87.2,4.02691374]
[1770433047528,1.99543001,87.279,87.2,4.02691374]
[1770433047727,3.72163252,87.278,87.205,4.02691374]
[1770433048728,3.72163252,87.278,87.21,4.02691374]
[1770433050132,3.72163252,87.278,87.213,4.02691374]
[1770433050725,3.72163252,87.278,87.218,4.02691374]
[1770433051730,3.72163252,87.278,87.222,4.02691374]
[1770433053336,3.72163252,87.278,87.224,4.02691374]
[1770433053929,3.72163252,87.278,87.228,4.02691374]
[1770433054536,3.72163252,87.278,87.229,10.3246]
[1770433054941,3.72163252,87.278,87.193,4.02691374]
[1770433055828,3.67780321,87.272,87.216,3.83558542]
[1770433057735,3.67780321,87.272,87.217,10.3261]
[1770433057934,3.67780321,87.272,87.217,14.16168542]
[1770433058336,13.52038426,87.28,87.159,35.52849379]
[1770433058337,3.67780321,87.27,87.177,28.32967219]
[1770433058540,3.67780321,87.239,87.181,3.83558542]
[1770433059634,3.67780321,87.254,87.209,3.83558542]
[1770433061331,3.67780321,87.254,87.21,10.3269]
[1770433062445,3.67780321,87.254,87.201,10.3279]
[1770433063141,3.67780321,87.254,87.196,3.83558542]
[1770433063142,3.67780321,87.251,87.196,3.83558542]
[1770433063338,3.67780321,87.269,87.196,3.83558542]
[1770433063637,3.67780321,87.265,87.196,3.83558542]
[1770433064743,3.67780321,87.262,87.196,3.83558542]
[1770433065243,3.67780321,87.259,87.196,3.83558542]
[1770433066737,3.67780321,87.257,87.196,3.83558542]
[1770433067136,3.67780321,87.253,87.196,3.83558542]
[1770433069733,3.67780321,87.245,87.176,3.83558542]
[1770433069939,3.67780321,87.229,87.163,3.83558542]
[1770433072743,3.67780321,87.229,87.165,3.83558542]
[1770433073549,3.67780321,87.249,87.172,3.83558542]
[1770433073849,3.67780321,87.269,87.177,3.83558542]
[1770433074149,3.67780321,87.269,87.154,35.52849379]
[1770433074150,3.67780321,87.269,87.183,3.83558542]
[1770433074347,3.67780321,87.269,87.203,3.83558542]
[1770433074937,3.67780321,87.269,87.208,3.83558542]
[1770433076048,3.67780321,87.285,87.226,10.3249]
[1770433076348,3.67780321,87.285,87.227,3.83558542]
[1770433078653,3.67780321,87.285,87.23,3.83558542]
[1770433079649,3.67780321,87.285,87.232,3.83558542]
[1770433083346,5.04632494,87.27,87.232,3.83558542]
[1770433083548,3.67780321,87.271,87.221,3.83558542]
[1770433083746,3.67780321,87.269,87.221,3.83558542]
[1770433084559,5.04632494,87.26,87.221,3.83558542]
[1770433084758,5.04632494,87.26,87.223,10.3253]
[1770433085761,5.04632494,87.26,87.225,10.3251]
[1770433085961,5.04632494,87.26,87.224,3.67723755]
[1770433087668,3.7949905,87.259,87.209,3.67723755]
[1770433088568,3.7949905,87.259,87.211,3.85137454]
[1770433089071,5.04632494,87.27,87.211,3.85137454]
[1770433089269,3.94309937,87.275,87.221,3.85137454]
[1770433090272,5.04632494,87.27,87.221,3.85137454]
[1770433093173,5.04632494,87.27,87.223,3.85137454]
[1770433094174,5.04632494,87.27,87.225,3.85137454]
[1770433095773,5.04632494,87.27,87.227,3.85137454]
[1770433096276,5.04632494,87.28,87.237,3.85137454]
[1770433097783,5.04632494,87.28,87.239,14.17477454]
[1770433097967,5.04632494,87.28,87.24,3.85137454]
[1770433098574,5.04632494,87.28,87.243,10.323]
[1770433099077,5.04632494,87.28,87.244,3.85137454]
[1770433099477,3.94309937,87.289,87.244,3.85137454]
[1770433100682,3.94309937,87.289,87.22,5.04632494]
[1770433100683,3.94309937,87.289,87.248,14.17377454]
[1770433103382,3.94309937,87.279,87.237,14.17507454]
[1770433103684,5.04632494,87.27,87.237,14.17507454]
[1770433104082,3.94309937,87.279,87.237,14.17507454]
[1770433105683,5.04632494,87.29,87.237,3.85137454]
[1770433106683,1.99481234,87.299,87.252,10.3219]
[1770433106889,1.99481234,87.299,87.252,3.85137454]
[1770433107080,5.04632494,87.3,87.252,3.85137454]
[1770433107280,5.04632494,87.27,87.223,3.85137454]
[1770433107478,10.3176,87.289,87.223,3.85137454]
[1770433107685,5.04632494,87.27,87.223,3.85137454]
[1770433108490,0.7535907,87.273,87.223,3.85137454]
[1770433108789,0.7535907,87.273,87.238,10.3235]
[1770433110191,5.04632494,87.27,87.238,10.3235]
[1770433111792,0.74633017,87.269,87.229,10.3246]
[1770433111980,5.04632494,87.26,87.229,10.3246]
[1770433112180,5.04632494,87.26,87.236,10.3237]
[1770433112991,5.79034445,87.25,87.209,3.85137454]
[1770433114091,5.79034445,87.25,87.218,10.3259]
[1770433115490,5.79245314,87.25,87.218,10.3259]
[1770433115784,5.79245314,87.25,87.209,3.85137454]
[1770433117494,5.04843363,87.24,87.209,3.85137454]
[1770433119197,0.71454727,87.249,87.209,3.85137454]
[1770433120595,0.7262031,87.261,87.209,3.85137454]
[1770433120902,0.7262031,87.259,87.209,3.85137454]
[1770433122698,0.7262031,87.259,87.21,3.69968237]
[1770433123693,0.7262031,87.259,87.213,3.69968237]
[1770433124701,0.7262031,87.259,87.214,10.3264]
[1770433124903,0.7262031,87.259,87.214,14.02608237]
[1770433125103,0.7262031,87.259,87.215,3.69968237]
[1770433125698,0.7262031,87.259,87.217,10.326]
[1770433125900,0.7262031,87.259,87.218,3.69968237]
[1770433128102,0.7262031,87.259,87.223,3.69968237]
[1770433128608,0.7262031,87.259,87.227,10.3248]
[1770433129009,5.04843363,87.24,87.209,3.69968237]
[1770433129203,0.71582599,87.249,87.209,3.69968237]
[1770433129398,0.71582599,87.249,87.21,3.69968237]
[1770433129906,0.71582599,87.259,87.21,3.69968237]
[1770433130096,1.99472658,87.299,87.226,3.69968237]
[1770433130097,0.69716865,87.269,87.226,3.69968237]
[1770433131907,0.69716865,87.269,87.235,10.3239]
[1770433132107,0.69716865,87.269,87.235,14.02358237]
[1770433135413,0.69716865,87.269,87.236,3.69968237]
[1770433136208,0.69716865,87.269,87.245,10.3227]
[1770433136615,5.04843363,87.28,87.246,3.69968237]
[1770433139809,0.87360365,87.269,87.23,3.69968237]
[1770433142417,5.04843363,87.25,87.21,3.69968237]
[1770433143521,10.3221,87.251,87.21,3.69968237]
[1770433143719,5.04843363,87.24,87.21,3.69968237]
[1770433146016,10.3235,87.239,87.21,3.69968237]
[1770433148620,5.04843363,87.24,87.21,3.69968237]
[1770433151123,5.82035105,87.25,87.21,3.69968237]
[1770433153025,0.77267173,87.249,87.21,3.69968237]
[1770433158225,5.04843363,87.26,87.21,3.69968237]
[1770433158429,5.04843363,87.27,87.211,3.77151644]
[1770433159327,0.77219149,87.269,87.211,3.77151644]
[1770433159726,5.04843363,87.26,87.221,3.77151644]
[1770433160327,5.04843363,87.24,87.208,3.77151644]
[1770433160826,5.04843363,87.24,87.184,3.77151644]
[1770433160827,5.04843363,87.23,87.184,3.77151644]
[1770433161530,5.847957,87.24,87.192,3.77151644]
[1770433162723,5.847957,87.24,87.196,3.77151644]
[1770433163327,5.04843363,87.25,87.202,3.77151644]
[1770433163528,5.04843363,87.26,87.202,3.77151644]
[1770433164832,5.04843363,87.26,87.22,3.77151644]
[1770433165935,5.04843363,87.26,87.222,3.77151644]
[1770433166735,5.04843363,87.25,87.217,10.326]
[1770433167441,5.04843363,87.25,87.211,3.77151644]
[1770433167737,5.04843363,87.25,87.212,10.3266]
[1770433167940,5.04843363,87.25,87.213,3.77151644]
[1770433168135,0.68855138,87.249,87.213,3.77151644]
[1770433169941,0.68855138,87.239,87.195,3.77151644]
[1770433170143,5.04843363,87.23,87.195,3.77151644]
[1770433170739,5.04843363,87.22,87.195,3.77151644]
[1770433171139,5.04843363,87.23,87.195,3.77151644]
[1770433171438,0.68855138,87.239,87.195,3.77151644]
[1770433171638,5.04843363,87.25,87.195,3.77151644]
[1770433171841,0.67339334,87.251,87.195,3.77151644]
[1770433174147,5.04843363,87.25,87.195,3.77151644]
[1770433175641,5.04891829,87.25,87.195,3.77151644]
[1770433177845,10.3221,87.251,87.201,3.71082307]
[1770433178036,10.3211,87.259,87.201,3.71082307]
[1770433178635,10.3222,87.25,87.201,3.71082307]
[1770433179642,0.66233499,87.249,87.201,3.71082307]
[1770433180949,5.75320182,87.26,87.201,3.71082307]
[1770433181351,0.70428353,87.259,87.201,3.71082307]
[1770433184756,0.70428353,87.259,87.203,3.71513925]
[1770433185647,0.70428353,87.259,87.205,3.71513925]
[1770433186653,5.04891829,87.25,87.209,3.70328166]
[1770433186847,0.70428353,87.259,87.209,3.70328166]
[1770433187650,0.65580411,87.271,87.222,3.70328166]
[1770433187858,0.65580411,87.259,87.211,3.70328166]
[1770433188558,0.67492741,87.269,87.221,3.69372001]
[1770433189747,5.04891829,87.26,87.222,14.01922001]
[1770433190154,5.04891829,87.26,87.222,3.69372001]
[1770433190349,0.67492741,87.269,87.222,3.69372001]
[1770433190552,5.04891829,87.27,87.223,3.68709067]
[1770433190745,0.68818611,87.291,87.223,3.68709067]
[1770433190948,0.68818611,87.298,87.245,3.68709067]
[1770433191144,10.69352131,87.364,87.245,3.68709067]
[1770433191352,1.99446364,87.329,87.271,3.68709067]
[1770433191654,5.04891829,87.32,87.281,3.68709067]
[1770433191956,14.23204495,87.401,87.281,3.68709067]
[1770433191957,1.99381231,87.339,87.281,3.68709067]
[1770433192151,0.74949211,87.361,87.291,3.66550624]
[1770433192352,0.74949211,87.38,87.321,3.66550624]
[1770433192554,5.04891829,87.37,87.321,3.66550624]
[1770433192753,5.04891829,87.37,87.248,35.52849379]
[1770433192754,5.04891829,87.35,87.291,3.66550624]
[1770433193160,5.7984104,87.35,87.291,3.66550624]
[1770433194053,5.04891829,87.34,87.291,3.66550624]
[1770433194253,0.7535692,87.339,87.291,3.66550624]
[1770433194449,5.04891829,87.32,87.277,3.66550624]
[1770433196057,0.7535692,87.319,87.277,3.66550624]
[1770433198964,5.04891829,87.31,87.277,3.66550624]
[1770433199262,0.7535692,87.319,87.277,3.66550624]
[1770433199666,5.04891829,87.32,87.277,3.66550624]
[1770433200066,5.04891829,87.33,87.277,3.66550624]
[1770433200469,5.80236219,87.34,87.281,3.66550624]
[1770433201569,5.04891829,87.34,87.292,3.66550624]
[1770433202371,5.04891829,87.35,87.292,3.66550624]
[1770433204572,5.04891829,87.33,87.292,3.66550624]
[1770433204970,10.309,87.362,87.292,3.66550624]
[1770433204971,5.04891829,87.34,87.292,3.66550624]
[1770433205476,5.04891829,87.33,87.292,3.66550624]
[1770433207575,0.7985289,87.339,87.292,3.66550624]
[1770433207774,5.04891829,87.33,87.292,3.66550624]
[1770433209479,5.04891829,87.33,87.224,28.32967219]
[1770433209480,5.04891829,87.3,87.263,3.74131792]
[1770433209980,0.75181473,87.309,87.263,3.74131792]
[1770433210184,5.04891829,87.31,87.263,3.74131792]
[1770433210477,5.04891829,87.35,87.291,3.74131792]
[1770433210678,5.04891829,87.36,87.301,3.74131792]
[1770433211281,5.81363844,87.36,87.301,3.74131792]
[1770433211482,5.04891829,87.35,87.301,3.74131792]
[1770433212874,5.04891829,87.37,87.302,3.74131792]
[1770433213079,5.04891829,87.37,87.311,3.74131792]
[1770433213385,0.80629469,87.372,87.311,3.74131792]
[1770433213777,0.80629469,87.372,87.316,3.74131792]
[1770433214482,0.80629469,87.372,87.318,3.74131792]
[1770433216179,2.77114038,87.389,87.319,3.74131792]
[1770433216384,0.77843551,87.389,87.319,3.74131792]
[1770433217286,0.77843551,87.389,87.334,3.74131792]
[1770433217685,0.77843551,87.389,87.339,3.74131792]
[1770433218384,0.77843551,87.389,87.31,13.48470989]
[1770433218385,0.77843551,87.389,87.34,10.3114]
[1770433218583,13.48470989,87.41,87.31,13.48470989]
[1770433218584,0.78830474,87.405,87.341,3.74131792]
[1770433219793,0.78830474,87.405,87.347,3.74131792]
[1770433223289,0.87969879,87.399,87.334,3.74131792]
[1770433224796,10.3067,87.381,87.334,3.74131792]
[1770433224995,11.14749607,87.381,87.334,3.74131792]
[1770433225198,0.84079607,87.38,87.334,3.74131792]
[1770433225392,0.84079607,87.38,87.314,3.74131792]
[1770433225393,0.84079607,87.377,87.314,3.74131792]
[1770433225696,20.6048,87.418,87.314,3.74131792]
[1770433225697,0.84079607,87.359,87.314,3.74131792]
[1770433225993,0.84079607,87.354,87.297,3.74131792]
[1770433226791,10.3106,87.348,87.297,3.74131792]
[1770433226995,0.83151311,87.347,87.282,3.74131792]
[1770433227294,0.83151311,87.339,87.282,3.74131792]
[1770433227497,0.83151311,87.337,87.282,3.74131792]
[1770433228690,0.85547392,87.335,87.26,3.74131792]
[1770433228999,13.48470989,87.36,87.26,3.74131792]
[1770433229000,0.85547392,87.319,87.26,3.74131792]
[1770433229197,0.85547392,87.316,87.26,3.74131792]
[1770433229793,0.85547392,87.331,87.26,3.74131792]
[1770433230696,0.85734529,87.329,87.26,3.74131792]
[1770433231092,10.3141,87.318,87.26,3.74131792]
[1770433231796,0.85734529,87.313,87.26,3.74131792]
[1770433232799,10.316,87.302,87.26,3.74131792]
[1770433233002,0.85734529,87.313,87.26,3.74131792]
[1770433233304,0.85466894,87.328,87.26,3.74131792]
[1770433234004,10.3135,87.324,87.26,3.74131792]
[1770433234704,0.85466894,87.328,87.262,3.74131792]
[1770433236600,13.48470989,87.36,87.262,3.74131792]
[1770433236601,0.90437403,87.319,87.262,3.74131792]
[1770433237199,0.90437403,87.319,87.265,3.78877922]
[1770433240302,0.90437403,87.319,87.266,10.3203]
[1770433240503,0.90437403,87.319,87.267,3.78877922]
[1770433241608,0.90437403,87.319,87.251,3.78877922]
[1770433241907,0.9393336,87.299,87.237,3.78877922]
[1770433242105,0.91849738,87.279,87.219,3.78877922]
[1770433242710,0.91849738,87.279,87.222,3.78877922]
[1770433245105,10.3161,87.302,87.23,3.78877922]
[1770433245410,0.8986216,87.301,87.23,3.78877922]
[1770433245600,0.8986216,87.301,87.241,3.78877922]
[1770433246811,14.41671683,87.29,87.241,3.78877922]
[1770433247300,11.23214576,87.289,87.241,3.78877922]
[1770433247503,0.91444576,87.288,87.241,3.78877922]
[1770433248111,0.90114634,87.269,87.216,3.78877922]
[1770433250807,13.50227107,87.29,87.22,3.78877922]
[1770433251013,0.94523991,87.299,87.22,3.78877922]
[1770433252709,0.94523991,87.299,87.238,3.78877922]
[1770433253317,10.3148,87.313,87.246,3.78877922]
[1770433253616,0.96030629,87.312,87.246,3.78877922]
[1770433254610,10.315,87.311,87.248,3.78877922]
[1770433255114,0.96030629,87.312,87.248,3.78877922]
[1770433256317,0.90600577,87.31,87.25,3.78877922]
[1770433258912,0.90600577,87.31,87.255,3.78877922]
[1770433259312,0.90600577,87.31,87.257,3.78877922]
[1770433260607,0.89935434,87.323,87.267,3.78877922]
[1770433261008,0.89935434,87.337,87.267,3.78877922]
[1770433261810,0.89935434,87.337,87.278,3.78877922]
[1770433262216,0.89935434,87.337,87.286,3.78877922]
[1770433263114,0.89935434,87.337,87.24,13.50227107]
[1770433263115,0.89935434,87.337,87.288,3.78877922]
[1770433263624,0.90662527,87.352,87.302,3.78877922]
[1770433264724,0.90662527,87.352,87.305,10.3157]
[1770433264918,0.90662527,87.352,87.305,14.10447922]
[1770433265119,0.90662527,87.352,87.306,3.78877922]
[1770433265418,0.91158655,87.366,87.31,3.78877922]
[1770433265926,13.50227107,87.38,87.31,3.78877922]
[1770433266216,0.91039035,87.386,87.31,3.78877922]
[1770433266717,0.91039035,87.386,87.3,13.50227107]
[1770433266718,0.91039035,87.386,87.339,3.81911663]
[1770433266915,14.41203351,87.4,87.339,3.81911663]
[1770433267115,0.90976244,87.399,87.339,3.81911663]
[1770433267722,0.90976244,87.399,87.342,14.13031663]
[1770433268617,0.90976244,87.399,87.348,3.77822989]
[1770433270720,0.90976244,87.399,87.349,14.08862989]
[1770433270916,0.84759912,87.413,87.35,3.77822989]
[1770433271226,0.84759912,87.427,87.381,10.3066]
[1770433271428,0.84759912,87.427,87.381,14.08482989]
[1770433272317,0.84759912,87.427,87.382,3.77822989]
[1770433272719,13.50227107,87.44,87.384,3.77822989]
[1770433273024,14.38046611,87.44,87.384,3.77822989]
[1770433273723,0.87819504,87.449,87.387,3.77822989]
[1770433274121,0.86351356,87.448,87.387,3.77822989]
[1770433275525,0.86351356,87.448,87.389,3.77822989]
[1770433276223,13.50227107,87.45,87.393,3.77822989]
[1770433277717,13.50227107,87.45,87.4,3.77822989]
[1770433278826,1.99141631,87.459,87.4,3.77822989]
[1770433279131,1.99141631,87.459,87.404,3.77822989]
[1770433279723,0.75892254,87.458,87.404,3.77822989]
[1770433279933,0.75892254,87.449,87.389,3.77822989]
[1770433280631,0.75892254,87.449,87.391,3.77822989]
[1770433281425,0.75892254,87.449,87.393,3.77822989]
[1770433281624,1.99141631,87.459,87.393,3.77822989]
[1770433281827,0.75050806,87.465,87.393,3.77822989]
[1770433282725,0.75050806,87.465,87.412,3.77822989]
[1770433284227,1.99084668,87.479,87.412,3.77822989]
[1770433284433,0.74031793,87.486,87.412,3.77822989]
[1770433285535,0.74031793,87.469,87.412,3.77822989]
[1770433286033,0.74031793,87.469,87.363,34.44]
[1770433286229,0.73911289,87.449,87.398,3.77822989]
[1770433287836,13.50227107,87.44,87.398,3.77822989]
[1770433290330,14.23389547,87.44,87.398,3.77822989]
[1770433290527,0.7316244,87.439,87.398,3.77822989]
[1770433291533,0.7316244,87.453,87.398,3.77822989]
[1770433292134,0.7316244,87.449,87.398,3.77822989]
[1770433294045,0.70229282,87.447,87.384,3.77822989]
[1770433295840,0.69921272,87.445,87.386,3.67528846]
[1770433296242,0.69108179,87.459,87.404,3.67935392]
[1770433299839,13.46250238,87.46,87.404,3.67935392]
[1770433300644,1.9907328,87.489,87.406,3.66320799]
[1770433300845,0.72337366,87.488,87.406,3.66320799]
[1770433301148,0.72337366,87.488,87.426,3.66320799]
[1770433301348,1.99044814,87.499,87.426,3.66320799]
[1770433301640,2.7138218,87.499,87.426,3.66320799]
[1770433301840,0.72337366,87.498,87.426,3.66320799]
[1770433302839,0.72337366,87.498,87.43,3.66353588]
[1770433303746,0.72337366,87.498,87.435,3.66353588]
[1770433304450,1.99044814,87.499,87.435,3.66353588]
[1770433304451,0.72209735,87.495,87.435,3.66353588]
[1770433305042,0.72209735,87.495,87.437,3.66384614]
[1770433305543,1.99022047,87.509,87.439,3.66384614]
[1770433305848,0.72209735,87.51,87.439,3.66384614]
[1770433306346,0.72272806,87.505,87.439,3.66384614]
[1770433307642,0.72272806,87.499,87.401,3.66353079]
[1770433307846,1.99009527,87.519,87.401,3.66353079]
[1770433307847,0.72272806,87.479,87.401,3.66353079]
[1770433308346,13.46250238,87.48,87.407,3.66549064]
[1770433308347,0.71880835,87.477,87.407,3.66549064]
[1770433308542,10.69352131,87.551,87.407,3.66549064]
[1770433308745,0.71880835,87.554,87.451,3.63063805]
[1770433309047,13.46250238,87.54,87.452,3.63063805]
[1770433309354,13.46250238,87.52,87.452,3.63063805]
[1770433309539,13.46250238,87.54,87.452,3.63063805]
[1770433309540,13.46250238,87.5,87.452,3.63063805]
[1770433310250,13.46250238,87.5,87.419,3.63063805]
[1770433310550,13.46250238,87.46,87.419,3.63063805]
[1770433311144,13.46250238,87.46,87.351,3.63063805]
[1770433311748,13.46250238,87.46,87.371,3.63063805]
[1770433311949,3.64436559,87.465,87.393,3.63063805]
[1770433312750,3.64436559,87.465,87.396,3.63063805]
[1770433313744,3.64436559,87.465,87.405,3.63063805]
[1770433314054,17.10686797,87.48,87.405,3.63063805]
[1770433314446,3.64436559,87.48,87.419,3.63063805]
[1770433314648,3.64436559,87.495,87.419,3.63063805]
[1770433317246,3.64436559,87.493,87.419,3.63063805]
[1770433317855,3.64436559,87.479,87.419,3.63063805]
[1770433319262,3.64436559,87.499,87.422,3.63063805]
[1770433320457,3.64436559,87.499,87.424,3.63063805]
[1770433321851,3.64436559,87.499,87.426,3.63063805]
[1770433322050,1.99050506,87.501,87.426,3.63063805]
[1770433322258,1.99050506,87.501,87.379,34.44]
[1770433322259,3.64436559,87.559,87.475,3.63063805]
[1770433322451,1.98953778,87.561,87.481,3.63063805]
[1770433322651,3.64436559,87.576,87.481,3.63063805]
[1770433322855,3.64436559,87.576,87.504,3.63063805]
[1770433323261,3.64436559,87.559,87.504,3.63063805]
[1770433323758,3.64436559,87.559,87.507,10.2919]
[1770433323962,3.64436559,87.579,87.508,3.63063805]
[1770433324663,3.64436559,87.572,87.508,3.63063805]
[1770433325056,3.64436559,87.557,87.508,3.63063805]
[1770433325256,3.64436559,87.557,87.479,3.63063805]
[1770433326262,14.06402319,87.546,87.479,3.63063805]
[1770433326452,13.46250238,87.54,87.479,3.63063805]
[1770433326658,3.77662319,87.539,87.479,3.63063805]
[1770433327566,3.77662319,87.516,87.45,3.80190258]
[1770433328564,3.81245459,87.512,87.45,3.80190258]
[1770433328760,3.81245459,87.512,87.452,3.66364935]
[1770433328962,14.12826786,87.612,87.452,3.66364935]
[1770433328963,3.81245459,87.529,87.452,3.66364935]
[1770433329467,3.81245459,87.529,87.43,13.46250238]
[1770433329468,3.81245459,87.529,87.463,3.66364935]
[1770433330667,13.46250238,87.53,87.466,3.66364935]
[1770433331058,3.81245459,87.545,87.466,3.66364935]
[1770433331661,3.81245459,87.545,87.475,3.66364935]
[1770433332965,1.98853734,87.581,87.475,3.66364935]
[1770433332966,17.27495697,87.53,87.475,3.66364935]
[1770433333963,10.58523556,87.689,87.457,160.1863]
[1770433334172,10.58091112,87.721,87.58,13.46250238]
[1770433334469,160.04,87.758,87.62,13.46250238]
[1770433334659,13.46250238,87.76,87.64,13.46250238]
[1770433334864,8.91902609,87.824,87.64,13.46250238]
[1770433334865,160.04,87.806,87.644,159.846]
[1770433335060,7.016e-05,87.733,87.664,159.8085]
[1770433335265,7.016e-05,87.733,87.66,13.46250238]
[1770433335469,7.016e-05,87.733,87.67,13.46250238]
[1770433335665,7.016e-05,87.733,87.699,10.2693]
[1770433335866,7.016e-05,87.733,87.67,13.46250238]
[1770433336269,45.08914048,87.733,87.63,13.46250238]
[1770433336463,45.08907032,87.729,87.62,13.46250238]
[1770433336671,45.08907032,87.729,87.64,13.46250238]
[1770433336857,45.08907032,87.729,87.66,10.2739]
[1770433337261,7.016e-05,87.733,87.66,10.2739]
[1770433338065,7.016e-05,87.733,87.676,10.272]
[1770433339464,7.016e-05,87.733,87.614,159.9003]
[1770433339762,7.016e-05,87.733,87.63,13.46250238]
[1770433340171,7.016e-05,87.733,87.645,10.2756]
[1770433340468,7.016e-05,87.733,87.63,13.46250238]
[1770433340669,13.46250238,87.72,87.63,13.46250238]
[1770433340863,7.016e-05,87.733,87.63,13.46250238]
[1770433341166,45.47268869,87.729,87.61,13.46250238]
[1770433341366,45.47268869,87.709,87.61,13.46250238]
[1770433341575,45.47268869,87.709,87.618,10.2788]
[1770433342472,45.45092743,87.73,87.632,10.2771]
[1770433342667,58.91342981,87.73,87.61,13.46250238]
[1770433342867,45.45092743,87.729,87.61,13.46250238]
[1770433343167,13.46250238,87.71,87.63,10.2773]
[1770433343569,45.45092743,87.729,87.645,10.2756]
[1770433344369,7.016e-05,87.733,87.67,13.46250238]
[1770433344568,7.016e-05,87.733,87.69,13.46250238]
[1770433344768,7.016e-05,87.733,87.729,0.34211036]
[1770433345163,45.49480561,87.805,87.729,0.34211036]
[1770433345366,10.55648395,87.963,87.729,0.34211036]
[1770433345367,45.49480561,87.799,87.729,0.34211036]
[1770433346367,13.46250238,87.78,87.729,0.34211036]
[1770433346876,45.49480561,87.799,87.729,0.34211036]
[1770433347074,45.62982385,87.779,87.69,10.2703]
[1770433347270,45.45876867,87.781,87.671,159.7966]
[1770433347467,45.45876867,87.769,87.66,13.46250238]
[1770433347668,45.45876867,87.769,87.687,10.2707]
[1770433348269,45.36440693,87.749,87.666,10.2732]
[1770433349369,1.98411567,87.772,87.666,159.8041]
[1770433349570,45.36440693,87.759,87.646,159.841]
[1770433349763,45.36440693,87.759,87.64,13.46250238]
[1770433349964,45.36440693,87.759,87.68,10.2715]
[1770433350171,45.47089383,87.739,87.64,13.46250238]
[1770433350776,45.47089383,87.739,87.62,13.46250238]
[1770433351475,45.47089383,87.699,87.59,13.46250238]
[1770433352677,45.47089383,87.699,87.622,10.2782]
[1770433353476,13.46250238,87.7,87.622,10.2782]
[1770433353477,13.46250238,87.68,87.622,10.2782]
[1770433354378,45.419901,87.689,87.622,10.2782]
[1770433355274,45.419901,87.689,87.636,10.2766]
[1770433356381,0.5,87.69,87.565,159.9892]
[1770433356382,45.44445775,87.679,87.565,159.9892]
[1770433356568,45.44445775,87.679,87.568,159.9844]
[1770433356769,13.46250238,87.66,87.559,160.001]
[1770433356971,13.46250238,87.66,87.603,10.2805]
[1770433357171,45.44445775,87.659,87.603,10.2805]
[1770433358077,45.38681911,87.639,87.539,160.0369]
[1770433359683,45.38681911,87.639,87.583,10.2829]
[1770433360179,45.38681911,87.639,87.52,20.5805]
[1770433360378,0.5,87.69,87.443,160.2121]
[1770433360379,45.40832027,87.599,87.5,13.40842841]
[1770433360581,27.96662027,87.599,87.514,160.0818]
[1770433360884,27.96662027,87.599,87.503,160.1035]
[1770433361086,27.96662027,87.599,87.544,10.2874]
[1770433361273,27.96662027,87.599,87.505,160.0984]
[1770433361479,27.96662027,87.599,87.53,10.289]
[1770433361679,13.40842841,87.58,87.493,160.1212]
[1770433361989,27.96662027,87.599,87.508,160.0931]
[1770433362388,27.96662027,87.599,87.5,13.40842841]
[1770433362781,13.40842841,87.66,87.485,20.5889]
[1770433362782,36.68568455,87.579,87.524,10.2898]
[1770433363184,36.68568455,87.549,87.456,160.1887]
[1770433363382,36.68568455,87.549,87.406,160.2808]
[1770433363383,13.40842841,87.57,87.469,160.1646]
[1770433363584,13.40842841,87.57,87.522,10.2901]
[1770433363893,13.40842841,87.58,87.522,10.2901]
[1770433364284,13.40842841,87.58,87.511,10.2914]
[1770433364490,13.40842841,87.54,87.44,13.40842841]
[1770433364690,13.40842841,87.6,87.426,160.2441]
[1770433364691,13.40842841,87.52,87.426,160.2441]
[1770433364991,13.40842841,87.52,87.421,20.604]
[1770433365191,13.40842841,87.52,87.368,160.3501]
[1770433365192,13.40842841,87.52,87.414,160.266]
[1770433365396,13.40842841,87.52,87.43,13.40842841]
[1770433365593,13.40842841,87.55,87.45,13.40842841]
[1770433366098,13.40842841,87.55,87.483,10.2947]
[1770433366595,13.40842841,87.55,87.437,160.2235]
[1770433366596,13.40842841,87.55,87.43,13.40842841]
[1770433367192,13.40842841,87.55,87.431,160.235]
[1770433367690,9.40440762,87.549,87.438,160.2222]
[1770433367891,9.40440762,87.549,87.45,13.40842841]
[1770433368090,9.40440762,87.549,87.47,13.40842841]
[1770433368888,9.40440762,87.549,87.512,10.2912]
[1770433369091,13.40842841,87.57,87.512,10.2912]
[1770433369403,13.40842841,87.59,87.47,13.40842841]
[1770433369587,13.40842841,87.66,87.471,160.1606]
[1770433369588,13.40842841,87.58,87.471,160.1606]
[1770433369794,13.40842841,87.58,87.472,160.1585]
[1770433370498,13.40842841,87.58,87.47,13.40842841]
[1770433370891,13.40842841,87.58,87.474,160.1552]
[1770433371089,4.71220936,87.579,87.474,160.1552]
[1770433371296,4.71220936,87.579,87.492,160.1226]
[1770433371688,4.71220936,87.579,87.49,13.40842841]
[1770433372394,4.71220936,87.579,87.47,13.40842841]
[1770433372702,4.71561311,87.559,87.45,13.40842841]